[Event "December 19 Early 2023"]
[Site "https://www.chess.com"]
[Date "2023.12.19"]
[Round "11"]
[White "Iljin, Timofey"]
[Black "Spichkin, Alexander"]
[Result "0-1"]
[Board "82"]
[TimeControl "180+1"]
[WhiteFideId "14110180"]
[BlackFideId "4144074"]
[WhiteElo "2380"]
[BlackElo "1955"]
[WhiteTeam "UKR"]
[BlackTeam "RUS"]
[WhiteClock "0:00:51"]
[BlackClock "0:00:21"]

1. e4 {[%clk 0:03:00]}  e5 {[%clk 0:02:59]} 2. Nf3 {[%clk 0:02:58]}  d5 {[%clk 0:02:58]} 3. Nxe5 {[%clk 0:02:57]}  Bd6 {[%clk 0:02:57]} 4. d4 {[%clk 0:02:52]}  dxe4 {[%clk 0:02:57]} 5. Bc4 {[%clk 0:02:52]}  Bxe5 {[%clk 0:02:57]} 6. dxe5 {[%clk 0:02:52]}  Qxd1+ {[%clk 0:02:56]} 7. Kxd1 {[%clk 0:02:53]}  Nc6 {[%clk 0:02:56]} 8. Bf4 {[%clk 0:02:50]}  Nge7 {[%clk 0:02:55]} 9. Nc3 {[%clk 0:02:46]}  Ng6 {[%clk 0:02:44]} 10. Bg3 {[%clk 0:02:46]}  Ngxe5 {[%clk 0:02:43]} 11. Bb3 {[%clk 0:02:46]}  Bf5 {[%clk 0:02:38]} 12. Ke2 {[%clk 0:02:44]}  O-O-O {[%clk 0:02:31]} 13. h3 {[%clk 0:02:37]}  Rhe8 {[%clk 0:02:22]} 14. Rad1 {[%clk 0:02:33]}  Nd4+ {[%clk 0:02:20]} 15. Ke3 {[%clk 0:02:30]}  Nxb3 {[%clk 0:02:17]} 16. axb3 {[%clk 0:02:28]}  Nc6 {[%clk 0:02:14]} 17. Nd5 {[%clk 0:02:26]}  Rd7 {[%clk 0:02:06]} 18. Nc3 {[%clk 0:01:59]}  Bg6 {[%clk 0:02:01]} 19. Nb5 {[%clk 0:01:54]}  Rde7 {[%clk 0:01:44]} 20. Rhe1 {[%clk 0:01:47]}  a6 {[%clk 0:01:40]} 21. Nc3 {[%clk 0:01:41]}  f5 {[%clk 0:01:36]} 22. Rd2 {[%clk 0:01:38]}  Bf7 {[%clk 0:01:28]} 23. h4 {[%clk 0:01:37]}  Rd7 {[%clk 0:01:27]} 24. Red1 {[%clk 0:01:32]}  Rxd2 {[%clk 0:01:25]} 25. Rxd2 {[%clk 0:01:32]}  Rd8 {[%clk 0:01:22]} 26. Rxd8+ {[%clk 0:01:32]}  Kxd8 {[%clk 0:01:22]} 27. Ne2 {[%clk 0:01:33]}  Nb4 {[%clk 0:01:18]} 28. Kd2 {[%clk 0:01:31]}  Kd7 {[%clk 0:01:15]} 29. Nf4 {[%clk 0:01:24]}  g6 {[%clk 0:01:12]} 30. Ne2 {[%clk 0:01:23]}  c5 {[%clk 0:01:09]} 31. Nc3 {[%clk 0:01:10]}  Kc6 {[%clk 0:01:08]} 32. Ne2 {[%clk 0:01:10]}  b5 {[%clk 0:01:07]} 33. Nf4 {[%clk 0:01:09]}  a5 {[%clk 0:01:03]} 34. h5 {[%clk 0:01:07]}  g5 {[%clk 0:01:00]} 35. Ne2 {[%clk 0:01:06]}  f4 {[%clk 0:00:59]} 36. Bh2 {[%clk 0:01:07]}  Bxh5 {[%clk 0:00:57]} 37. Ng1 {[%clk 0:01:07]}  Nd5 {[%clk 0:00:51]} 38. Nh3 {[%clk 0:01:03]}  h6 {[%clk 0:00:50]} 39. Ng1 {[%clk 0:01:01]}  e3+ {[%clk 0:00:40]} 40. fxe3 {[%clk 0:01:00]}  fxe3+ {[%clk 0:00:40]} 41. Ke1 {[%clk 0:00:59]}  Nf6 {[%clk 0:00:39]} 42. Nh3 {[%clk 0:00:57]}  Kd5 {[%clk 0:00:38]} 43. Bg1 {[%clk 0:00:56]}  Ke4 {[%clk 0:00:37]} 44. g3 {[%clk 0:00:55]}  Bg4 {[%clk 0:00:36]} 45. Bxe3 {[%clk 0:00:53]}  Bxh3 {[%clk 0:00:31]} 46. Bxc5 {[%clk 0:00:54]}  Kf3 {[%clk 0:00:29]} 47. Bb6 {[%clk 0:00:52]}  a4 {[%clk 0:00:28]} 48. c4 {[%clk 0:00:48]}  axb3 {[%clk 0:00:26]} 49. cxb5 {[%clk 0:00:49]}  Bd7 {[%clk 0:00:25]} 50. Bd4 {[%clk 0:00:47]}  Ne4 {[%clk 0:00:25]} 51. b6 {[%clk 0:00:48]}  Bc6 {[%clk 0:00:25]} 52. Kd1 {[%clk 0:00:46]}  Nxg3 {[%clk 0:00:25]} 53. Kd2 {[%clk 0:00:47]}  h5 {[%clk 0:00:25]} 54. Kc3 {[%clk 0:00:46]}  Ne2+ {[%clk 0:00:24]} 55. Kxb3 {[%clk 0:00:47]}  Nxd4+ {[%clk 0:00:24]} 56. Kc4 {[%clk 0:00:48]}  Nf5 {[%clk 0:00:24]} 57. Kc5 {[%clk 0:00:48]}  Bb7 {[%clk 0:00:24]} 58. b4 {[%clk 0:00:49]}  h4 {[%clk 0:00:24]} 59. Kb5 {[%clk 0:00:49]}  h3 {[%clk 0:00:24]} 60. Ka5 {[%clk 0:00:50]}  h2 {[%clk 0:00:24]} 61. Kb5 {[%clk 0:00:51]}  h1=Q {[%clk 0:00:24]} 62. Kc5 {[%clk 0:00:52]}  Qh6 {[%clk 0:00:23]} 63. b5 {[%clk 0:00:53]}  Qd6+ {[%clk 0:00:23]} 64. Kc4 {[%clk 0:00:53]}  Bd5+ {[%clk 0:00:22]} 65. Kc3 {[%clk 0:00:54]}  Qa3+ {[%clk 0:00:21]} 66. Kd2 {[%clk 0:00:54]}  Nd4 {[%clk 0:00:20]} 67. Kd1 {[%clk 0:00:54]}  Bb3+ {[%clk 0:00:20]} 68. Kd2 {[%clk 0:00:54]}  Bc4 {[%clk 0:00:20]} 69. Kd1 {[%clk 0:00:53]}  Qd3+ {[%clk 0:00:21]} 70. Kc1 {[%clk 0:00:51]}  Qc2# {[%clk 0:00:21]} 0-1

[Event "December 19 Early 2023"]
[Site "https://www.chess.com"]
[Date "2023.12.19"]
[Round "11"]
[White "Shadhursshaan R"]
[Black "Shuvalov, Evgenij"]
[Result "1-0"]
[Board "83"]
[TimeControl "180+1"]
[WhiteFideId "45024138"]
[BlackFideId "4187237"]
[WhiteElo "1760"]
[BlackElo "2084"]
[WhiteTeam "IND"]
[BlackTeam "FID"]
[WhiteClock "0:00:34"]
[BlackClock "0:00:00"]

1. d4 {[%clk 0:02:55]}  Nf6 {[%clk 0:02:59]} 2. c4 {[%clk 0:02:54]}  g6 {[%clk 0:02:59]} 3. Nc3 {[%clk 0:02:54]}  d5 {[%clk 0:02:59]} 4. h4 {[%clk 0:02:53]}  c5 {[%clk 0:02:54]} 5. cxd5 {[%clk 0:02:51]}  Nxd5 {[%clk 0:02:48]} 6. dxc5 {[%clk 0:02:49]}  Nxc3 {[%clk 0:02:35]} 7. Qxd8+ {[%clk 0:02:50]}  Kxd8 {[%clk 0:02:35]} 8. bxc3 {[%clk 0:02:51]}  Bg7 {[%clk 0:02:36]} 9. Bd2 {[%clk 0:02:49]}  Nd7 {[%clk 0:02:35]} 10. Nf3 {[%clk 0:02:47]}  Nxc5 {[%clk 0:02:34]} 11. e3 {[%clk 0:02:40]}  Ne4 {[%clk 0:02:30]} 12. Rc1 {[%clk 0:02:32]}  Be6 {[%clk 0:02:28]} 13. a3 {[%clk 0:02:25]}  Rc8 {[%clk 0:02:26]} 14. c4 {[%clk 0:02:19]}  Nxd2 {[%clk 0:02:16]} 15. Nxd2 {[%clk 0:02:18]}  Bb2 {[%clk 0:02:13]} 16. Rb1 {[%clk 0:02:12]}  Bxa3 {[%clk 0:02:12]} 17. Rxb7 {[%clk 0:02:12]}  a5 {[%clk 0:02:10]} 18. Be2 {[%clk 0:02:09]}  Bb4 {[%clk 0:02:10]} 19. O-O {[%clk 0:02:06]}  Rc7 {[%clk 0:02:06]} 20. Rb8+ {[%clk 0:02:03]}  Rc8 {[%clk 0:02:03]} 21. Rb7 {[%clk 0:02:03]}  Ke8 {[%clk 0:01:44]} 22. Nf3 {[%clk 0:01:53]}  Kf8 {[%clk 0:01:38]} 23. Nd4 {[%clk 0:01:49]}  Kg7 {[%clk 0:01:21]} 24. Nxe6+ {[%clk 0:01:44]}  fxe6 {[%clk 0:01:22]} 25. Rd1 {[%clk 0:01:45]}  Rhd8 {[%clk 0:01:20]} 26. Rxd8 {[%clk 0:01:33]}  Rxd8 {[%clk 0:01:21]} 27. Ra7 {[%clk 0:01:32]}  Rd2 {[%clk 0:01:16]} 28. Bf3 {[%clk 0:01:32]}  Rc2 {[%clk 0:01:12]} 29. Bg4 {[%clk 0:01:32]}  Rxc4 {[%clk 0:01:08]} 30. Bxe6 {[%clk 0:01:30]}  Rxh4 {[%clk 0:01:05]} 31. g3 {[%clk 0:01:30]}  Re4 {[%clk 0:01:04]} 32. Bd5 {[%clk 0:01:30]}  Re5 {[%clk 0:00:55]} 33. e4 {[%clk 0:01:29]}  Rh5 {[%clk 0:00:54]} 34. Kg2 {[%clk 0:01:26]}  g5 {[%clk 0:00:52]} 35. g4 {[%clk 0:01:21]}  Rh4 {[%clk 0:00:49]} 36. f3 {[%clk 0:01:21]}  Rh6 {[%clk 0:00:47]} 37. Ra8 {[%clk 0:01:14]}  Rb6 {[%clk 0:00:42]} 38. Kf2 {[%clk 0:01:08]}  Bc5+ {[%clk 0:00:41]} 39. Ke2 {[%clk 0:01:08]}  Rb2+ {[%clk 0:00:40]} 40. Kd3 {[%clk 0:01:08]}  Bb4 {[%clk 0:00:40]} 41. Rg8+ {[%clk 0:01:06]}  Kh6 {[%clk 0:00:39]} 42. Bf7 {[%clk 0:00:55]}  Rf2 {[%clk 0:00:32]} 43. Be6 {[%clk 0:00:42]}  Rxf3+ {[%clk 0:00:31]} 44. Kd4 {[%clk 0:00:42]}  Rf6 {[%clk 0:00:27]} 45. Bf5 {[%clk 0:00:40]}  e6 {[%clk 0:00:23]} 46. e5 {[%clk 0:00:40]}  Rf8 {[%clk 0:00:17]} 47. Bxe6 {[%clk 0:00:34]}  Rxg8 {[%clk 0:00:16]} 48. Bxg8 {[%clk 0:00:35]}  Kg7 {[%clk 0:00:16]} 49. Bb3 {[%clk 0:00:35]}  Kf8 {[%clk 0:00:16]} 50. Ke4 {[%clk 0:00:35]}  Ke7 {[%clk 0:00:16]} 51. Kf5 {[%clk 0:00:36]}  Bd2 {[%clk 0:00:17]} 52. Ba4 {[%clk 0:00:35]}  Bf4 {[%clk 0:00:16]} 53. Bb3 {[%clk 0:00:34]}  Be3 {[%clk 0:00:16]} 54. Bg8 {[%clk 0:00:35]}  h6 {[%clk 0:00:16]} 55. Bb3 {[%clk 0:00:34]}  Bf4 {[%clk 0:00:16]} 56. e6 {[%clk 0:00:34]}  Be5 {[%clk 0:00:00]} 57. Kxe5 {[%clk 0:00:34]} 1-0

[Event "December 19 Early 2023"]
[Site "https://www.chess.com"]
[Date "2023.12.19"]
[Round "11"]
[White "Horak, Martin"]
[Black "Figorito, Nick"]
[Result "1-0"]
[Board "86"]
[TimeControl "180+1"]
[WhiteFideId "367095"]
[BlackFideId "30923689"]
[WhiteElo "2091"]
[BlackElo "2421"]
[WhiteTeam "CZE"]
[BlackTeam "USA"]
[WhiteClock "0:00:14"]
[BlackClock "0:00:05"]

1. e4 {[%clk 0:03:00]}  e6 {[%clk 0:02:59]} 2. d4 {[%clk 0:03:00]}  d5 {[%clk 0:03:00]} 3. e5 {[%clk 0:02:58]}  c5 {[%clk 0:03:00]} 4. c3 {[%clk 0:02:58]}  Bd7 {[%clk 0:03:01]} 5. Nf3 {[%clk 0:02:58]}  Qb6 {[%clk 0:03:01]} 6. Be2 {[%clk 0:02:36]}  Bb5 {[%clk 0:03:01]} 7. Bxb5+ {[%clk 0:02:37]}  Qxb5 {[%clk 0:03:02]} 8. Na3 {[%clk 0:02:38]}  Qd7 {[%clk 0:03:02]} 9. O-O {[%clk 0:02:36]}  cxd4 {[%clk 0:02:59]} 10. cxd4 {[%clk 0:02:36]}  Bxa3 {[%clk 0:02:59]} 11. bxa3 {[%clk 0:02:37]}  Ne7 {[%clk 0:02:59]} 12. a4 {[%clk 0:02:32]}  O-O {[%clk 0:02:59]} 13. Ba3 {[%clk 0:02:32]}  Nbc6 {[%clk 0:02:59]} 14. Qd3 {[%clk 0:02:24]}  h6 {[%clk 0:02:58]} 15. Rab1 {[%clk 0:02:14]}  Rfc8 {[%clk 0:02:55]} 16. Rfc1 {[%clk 0:02:12]}  b6 {[%clk 0:02:54]} 17. g4 {[%clk 0:02:03]}  Na5 {[%clk 0:02:54]} 18. g5 {[%clk 0:01:30]}  hxg5 {[%clk 0:02:54]} 19. Nxg5 {[%clk 0:01:30]}  Nf5 {[%clk 0:02:54]} 20. Qh3 {[%clk 0:01:20]}  Nh6 {[%clk 0:02:51]} 21. Kh1 {[%clk 0:01:14]}  Nc4 {[%clk 0:02:44]} 22. Bb4 {[%clk 0:01:08]}  Qxa4 {[%clk 0:02:36]} 23. Rg1 {[%clk 0:01:04]}  Qxa2 {[%clk 0:02:33]} 24. Nxe6 {[%clk 0:00:57]}  fxe6 {[%clk 0:01:57]} 25. Qxh6 {[%clk 0:00:51]}  Rc7 {[%clk 0:01:42]} 26. Qxe6+ {[%clk 0:00:51]}  Kh8 {[%clk 0:01:32]} 27. Qxd5 {[%clk 0:00:31]}  Rac8 {[%clk 0:01:18]} 28. e6 {[%clk 0:00:31]}  Qxf2 {[%clk 0:00:56]} 29. Rbf1 {[%clk 0:00:24]}  Qh4 {[%clk 0:00:44]} 30. Rg5 {[%clk 0:00:15]}  g6 {[%clk 0:00:15]} 31. e7 {[%clk 0:00:16]}  Kh7 {[%clk 0:00:05]} 32. Qf7+ {[%clk 0:00:14]}  Kh6 {[%clk 0:00:05]} 33. Rxg6+ {[%clk 0:00:13]}  Kh5 {[%clk 0:00:05]} 34. Qh7# {[%clk 0:00:14]} 1-0

[Event "December 19 Early 2023"]
[Site "https://www.chess.com"]
[Date "2023.12.19"]
[Round "11"]
[White "Avila Rodriguez, Joshua Ad"]
[Black "Rozhkov, Viacheslav"]
[Result "1-0"]
[Board "89"]
[TimeControl "180+1"]
[WhiteFideId "5126444"]
[BlackFideId "4181484"]
[WhiteElo "2097"]
[BlackElo "2237"]
[WhiteTeam "MEX"]
[BlackTeam "RUS"]
[WhiteClock "0:00:47"]
[BlackClock "0:00:52"]

1. d4 {[%clk 0:03:00]}  d5 {[%clk 0:03:00]} 2. c4 {[%clk 0:02:59]}  dxc4 {[%clk 0:03:00]} 3. Nf3 {[%clk 0:02:59]}  c6 {[%clk 0:02:56]} 4. e3 {[%clk 0:02:59]}  b5 {[%clk 0:02:56]} 5. b3 {[%clk 0:02:28]}  cxb3 {[%clk 0:02:54]} 6. Qxb3 {[%clk 0:02:28]}  e6 {[%clk 0:02:51]} 7. Bd3 {[%clk 0:02:27]}  Nf6 {[%clk 0:02:51]} 8. O-O {[%clk 0:02:27]}  a5 {[%clk 0:02:47]} 9. Nbd2 {[%clk 0:02:22]}  a4 {[%clk 0:02:46]} 10. Qc2 {[%clk 0:02:22]}  Be7 {[%clk 0:02:46]} 11. a3 {[%clk 0:02:18]}  O-O {[%clk 0:02:44]} 12. Bb2 {[%clk 0:02:19]}  h6 {[%clk 0:02:43]} 13. Ne5 {[%clk 0:02:17]}  Bb7 {[%clk 0:02:42]} 14. Rfc1 {[%clk 0:02:15]}  Nfd7 {[%clk 0:02:39]} 15. Ndf3 {[%clk 0:02:01]}  c5 {[%clk 0:02:30]} 16. dxc5 {[%clk 0:01:45]}  Nxc5 {[%clk 0:02:25]} 17. Bh7+ {[%clk 0:01:36]}  Kh8 {[%clk 0:02:25]} 18. Nxf7+ {[%clk 0:01:36]}  Rxf7 {[%clk 0:02:25]} 19. Ne5 {[%clk 0:01:37]}  Rf6 {[%clk 0:02:10]} 20. Ng6+ {[%clk 0:01:32]}  Rxg6 {[%clk 0:01:41]} 21. Qxg6 {[%clk 0:01:33]}  Qf8 {[%clk 0:01:40]} 22. Qxh6 {[%clk 0:01:25]}  Bg5 {[%clk 0:01:31]} 23. Qxg5 {[%clk 0:01:22]}  Kxh7 {[%clk 0:01:31]} 24. Rxc5 {[%clk 0:01:17]}  Nd7 {[%clk 0:01:29]} 25. Rc7 {[%clk 0:01:17]}  Bc8 {[%clk 0:01:11]} 26. Rd1 {[%clk 0:01:10]}  Qf7 {[%clk 0:01:10]} 27. Qh4+ {[%clk 0:01:00]}  Kg6 {[%clk 0:01:02]} 28. g4 {[%clk 0:00:48]}  e5 {[%clk 0:00:53]} 29. Qh5+ {[%clk 0:00:44]}  Kf6 {[%clk 0:00:52]} 30. Qf5+ {[%clk 0:00:45]}  Ke7 {[%clk 0:00:52]} 31. Rdxd7+ {[%clk 0:00:45]}  Bxd7 {[%clk 0:00:51]} 32. Rxd7+ {[%clk 0:00:46]}  Ke8 {[%clk 0:00:52]} 33. Qxf7# {[%clk 0:00:47]} 1-0

[Event "December 19 Early 2023"]
[Site "https://www.chess.com"]
[Date "2023.12.19"]
[Round "11"]
[White "Parfenov, Viktor N."]
[Black "Mesquita, Eduardo Barbosa"]
[Result "0-1"]
[Board "90"]
[TimeControl "180+1"]
[WhiteFideId "4165969"]
[BlackFideId "22757163"]
[WhiteElo "2093"]
[BlackElo "1953"]
[WhiteTeam "RUS"]
[BlackTeam "BRA"]
[WhiteClock "0:00:14"]
[BlackClock "0:01:19"]

1. e4 {[%clk 0:03:00]}  c5 {[%clk 0:03:00]} 2. Nf3 {[%clk 0:03:00]}  d6 {[%clk 0:03:00]} 3. d4 {[%clk 0:03:00]}  cxd4 {[%clk 0:03:01]} 4. Nxd4 {[%clk 0:02:59]}  Nf6 {[%clk 0:03:02]} 5. Nc3 {[%clk 0:02:59]}  a6 {[%clk 0:03:03]} 6. Be3 {[%clk 0:02:59]}  e6 {[%clk 0:03:03]} 7. f3 {[%clk 0:02:55]}  b5 {[%clk 0:03:02]} 8. g4 {[%clk 0:02:52]}  Bb7 {[%clk 0:03:01]} 9. g5 {[%clk 0:02:42]}  Nfd7 {[%clk 0:03:01]} 10. a3 {[%clk 0:02:38]}  Nb6 {[%clk 0:03:00]} 11. Qd2 {[%clk 0:02:35]}  N8d7 {[%clk 0:02:59]} 12. f4 {[%clk 0:02:22]}  d5 {[%clk 0:02:51]} 13. e5 {[%clk 0:02:19]}  b4 {[%clk 0:02:51]} 14. axb4 {[%clk 0:02:19]}  Bxb4 {[%clk 0:02:52]} 15. h4 {[%clk 0:02:17]}  Nc5 {[%clk 0:02:51]} 16. Bd3 {[%clk 0:02:11]}  Nc4 {[%clk 0:02:26]} 17. Bxc4 {[%clk 0:02:10]}  dxc4 {[%clk 0:02:27]} 18. Rh3 {[%clk 0:01:56]}  O-O {[%clk 0:02:17]} 19. Nde2 {[%clk 0:01:49]}  Qc7 {[%clk 0:02:13]} 20. Bxc5 {[%clk 0:01:38]}  Qxc5 {[%clk 0:02:13]} 21. O-O-O {[%clk 0:01:35]}  Qa5 {[%clk 0:02:06]} 22. Kb1 {[%clk 0:01:34]}  Rfd8 {[%clk 0:02:06]} 23. Qc1 {[%clk 0:01:26]}  Rxd1 {[%clk 0:01:46]} 24. Qxd1 {[%clk 0:01:25]}  Rd8 {[%clk 0:01:46]} 25. Qc1 {[%clk 0:01:23]}  Bc6 {[%clk 0:01:44]} 26. Rg3 {[%clk 0:01:21]}  g6 {[%clk 0:01:37]} 27. Rg1 {[%clk 0:01:17]}  Qb6 {[%clk 0:01:30]} 28. Rd1 {[%clk 0:01:15]}  Rb8 {[%clk 0:01:30]} 29. Ka1 {[%clk 0:00:46]}  Qa5+ {[%clk 0:01:25]} 30. Kb1 {[%clk 0:00:46]}  Bf3 {[%clk 0:01:25]} 31. Qe3 {[%clk 0:00:24]}  Bxc3 {[%clk 0:01:20]} 32. Qxc3 {[%clk 0:00:17]}  Qxc3 {[%clk 0:01:19]} 33. Nxc3 {[%clk 0:00:16]}  Bxd1 {[%clk 0:01:19]} 34. Nxd1 {[%clk 0:00:16]}  Rd8 {[%clk 0:01:19]} 35. Ne3 {[%clk 0:00:14]}  Rd4 {[%clk 0:01:19]} 0-1

[Event "December 19 Early 2023"]
[Site "https://www.chess.com"]
[Date "2023.12.19"]
[Round "11"]
[White "Skibbe, Willi"]
[Black "Tikhonov, Viacheslav"]
[Result "0-1"]
[Board "91"]
[TimeControl "180+1"]
[WhiteFideId "4682190"]
[BlackFideId "44196407"]
[WhiteElo "2378"]
[BlackElo "2209"]
[WhiteTeam "GER"]
[BlackTeam "RUS"]
[WhiteClock "0:01:26"]
[BlackClock "0:01:09"]

1. d4 {[%clk 0:03:00]}  Nf6 {[%clk 0:02:57]} 2. c4 {[%clk 0:03:00]}  g6 {[%clk 0:02:57]} 3. Nc3 {[%clk 0:02:59]}  d5 {[%clk 0:02:56]} 4. Bf4 {[%clk 0:02:58]}  c6 {[%clk 0:02:52]} 5. e3 {[%clk 0:02:52]}  Bg7 {[%clk 0:02:51]} 6. cxd5 {[%clk 0:02:52]}  cxd5 {[%clk 0:02:49]} 7. Nf3 {[%clk 0:02:52]}  O-O {[%clk 0:02:48]} 8. h3 {[%clk 0:02:51]}  Nc6 {[%clk 0:02:48]} 9. Be2 {[%clk 0:02:48]}  a6 {[%clk 0:02:41]} 10. Rc1 {[%clk 0:02:37]}  e6 {[%clk 0:02:37]} 11. Ne5 {[%clk 0:02:29]}  Nxe5 {[%clk 0:02:37]} 12. Bxe5 {[%clk 0:02:30]}  Bd7 {[%clk 0:02:32]} 13. Qb3 {[%clk 0:02:28]}  b5 {[%clk 0:02:31]} 14. a4 {[%clk 0:02:27]}  bxa4 {[%clk 0:02:25]} 15. Nxa4 {[%clk 0:02:24]}  Qa5+ {[%clk 0:02:18]} 16. Nc3 {[%clk 0:02:24]}  Ne4 {[%clk 0:02:16]} 17. Bxg7 {[%clk 0:02:23]}  Kxg7 {[%clk 0:02:16]} 18. O-O {[%clk 0:02:23]}  Nd2 {[%clk 0:02:16]} 19. Qb7 {[%clk 0:02:16]}  Nxf1 {[%clk 0:02:12]} 20. Qxd7 {[%clk 0:02:15]}  Nd2 {[%clk 0:02:11]} 21. Qd6 {[%clk 0:02:03]}  Rac8 {[%clk 0:02:01]} 22. Qe5+ {[%clk 0:02:02]}  Kg8 {[%clk 0:02:01]} 23. Rd1 {[%clk 0:01:55]}  Nc4 {[%clk 0:01:37]} 24. Bxc4 {[%clk 0:01:53]}  Rxc4 {[%clk 0:01:38]} 25. h4 {[%clk 0:01:53]}  Qc7 {[%clk 0:01:36]} 26. Qf6 {[%clk 0:01:52]}  h5 {[%clk 0:01:28]} 27. g4 {[%clk 0:01:50]}  Qd8 {[%clk 0:01:26]} 28. Qxd8 {[%clk 0:01:44]}  Rxd8 {[%clk 0:01:27]} 29. Ra1 {[%clk 0:01:42]}  hxg4 {[%clk 0:01:24]} 30. Rxa6 {[%clk 0:01:41]}  Rb8 {[%clk 0:01:23]} 31. Na4 {[%clk 0:01:36]}  Rc1+ {[%clk 0:01:20]} 32. Kg2 {[%clk 0:01:36]}  Ra1 {[%clk 0:01:21]} 33. Kg3 {[%clk 0:01:31]}  Rb4 {[%clk 0:01:19]} 34. b3 {[%clk 0:01:30]}  Rxb3 {[%clk 0:01:18]} 35. Kf4 {[%clk 0:01:31]}  Rb4 {[%clk 0:01:17]} 36. Kg5 {[%clk 0:01:29]}  Rbxa4 {[%clk 0:01:12]} 37. Rc6 {[%clk 0:01:26]}  Kg7 {[%clk 0:01:09]} 0-1

[Event "December 19 Early 2023"]
[Site "https://www.chess.com"]
[Date "2023.12.19"]
[Round "11"]
[White "Borawski, Jakub"]
[Black "Reprintsev, Alexander"]
[Result "1-0"]
[Board "92"]
[TimeControl "180+1"]
[WhiteFideId "1143000"]
[BlackFideId "14100541"]
[WhiteElo "2052"]
[BlackElo "2229"]
[WhiteTeam "POL"]
[BlackTeam "UKR"]
[WhiteClock "0:00:23"]
[BlackClock "0:00:00"]

1. f4 {[%clk 0:03:00]}  e5 {[%clk 0:01:32]} 2. fxe5 {[%clk 0:03:00]}  d6 {[%clk 0:01:33]} 3. exd6 {[%clk 0:03:00]}  Bxd6 {[%clk 0:01:33]} 4. Nf3 {[%clk 0:03:00]}  Nf6 {[%clk 0:01:32]} 5. d4 {[%clk 0:02:58]}  Nc6 {[%clk 0:01:26]} 6. Bg5 {[%clk 0:02:37]}  h6 {[%clk 0:01:04]} 7. Bxf6 {[%clk 0:02:37]}  Qxf6 {[%clk 0:01:04]} 8. e4 {[%clk 0:02:37]}  Bf4 {[%clk 0:00:53]} 9. Bb5 {[%clk 0:02:29]}  Bd7 {[%clk 0:00:45]} 10. Nc3 {[%clk 0:02:18]}  O-O-O {[%clk 0:00:43]} 11. Nd5 {[%clk 0:02:14]}  Qd6 {[%clk 0:00:40]} 12. c4 {[%clk 0:01:36]}  g5 {[%clk 0:00:19]} 13. e5 {[%clk 0:01:11]}  Qg6 {[%clk 0:00:19]} 14. Bxc6 {[%clk 0:01:07]}  Bxc6 {[%clk 0:00:18]} 15. Ne7+ {[%clk 0:01:06]}  Kb8 {[%clk 0:00:15]} 16. Nxg6 {[%clk 0:01:07]}  fxg6 {[%clk 0:00:15]} 17. d5 {[%clk 0:01:02]}  g4 {[%clk 0:00:12]} 18. Nd4 {[%clk 0:00:59]}  Bd7 {[%clk 0:00:11]} 19. e6 {[%clk 0:00:57]}  Bc8 {[%clk 0:00:10]} 20. O-O {[%clk 0:00:57]}  Be5 {[%clk 0:00:10]} 21. Kh1 {[%clk 0:00:50]}  h5 {[%clk 0:00:10]} 22. Rf7 {[%clk 0:00:41]}  a6 {[%clk 0:00:08]} 23. Rc1 {[%clk 0:00:39]}  g5 {[%clk 0:00:05]} 24. b4 {[%clk 0:00:37]}  Bf4 {[%clk 0:00:05]} 25. Rc2 {[%clk 0:00:34]}  g3 {[%clk 0:00:06]} 26. hxg3 {[%clk 0:00:33]}  Bxg3 {[%clk 0:00:06]} 27. Qf3 {[%clk 0:00:29]}  h4 {[%clk 0:00:05]} 28. Nf5 {[%clk 0:00:26]}  Be5 {[%clk 0:00:04]} 29. Qe4 {[%clk 0:00:25]}  Ba1 {[%clk 0:00:00]} 30. Rf2 {[%clk 0:00:23]} 1-0

[Event "December 19 Early 2023"]
[Site "https://www.chess.com"]
[Date "2023.12.19"]
[Round "11"]
[White "Kanyamarala, Tarun"]
[Black "Marinakis, Hristos"]
[Result "1-0"]
[Board "93"]
[TimeControl "180+1"]
[WhiteFideId "45004714"]
[BlackFideId "4294661"]
[WhiteElo "2318"]
[BlackElo "2327"]
[WhiteTeam "IRL"]
[BlackTeam "GRE"]
[WhiteClock "0:00:48"]
[BlackClock "0:00:00"]

1. d4 {[%clk 0:02:47]}  Nf6 {[%clk 0:02:58]} 2. c4 {[%clk 0:02:46]}  e6 {[%clk 0:02:58]} 3. Bf4 {[%clk 0:02:43]}  b6 {[%clk 0:02:54]} 4. a3 {[%clk 0:02:41]}  Bb7 {[%clk 0:02:54]} 5. Nc3 {[%clk 0:02:40]}  Be7 {[%clk 0:02:52]} 6. Nf3 {[%clk 0:02:39]}  O-O {[%clk 0:02:52]} 7. e3 {[%clk 0:02:38]}  d5 {[%clk 0:02:51]} 8. Rc1 {[%clk 0:02:33]}  c5 {[%clk 0:02:47]} 9. cxd5 {[%clk 0:02:24]}  Nxd5 {[%clk 0:02:41]} 10. Nxd5 {[%clk 0:02:21]}  Bxd5 {[%clk 0:02:41]} 11. dxc5 {[%clk 0:02:17]}  Bxc5 {[%clk 0:02:38]} 12. Be2 {[%clk 0:02:13]}  a5 {[%clk 0:02:07]} 13. O-O {[%clk 0:02:11]}  Nc6 {[%clk 0:02:05]} 14. Qc2 {[%clk 0:02:03]}  a4 {[%clk 0:01:47]} 15. Ng5 {[%clk 0:01:49]}  g6 {[%clk 0:01:36]} 16. Bf3 {[%clk 0:01:48]}  Qf6 {[%clk 0:01:01]} 17. Ne4 {[%clk 0:01:39]}  Bxe4 {[%clk 0:01:01]} 18. Bxe4 {[%clk 0:01:36]}  Rfc8 {[%clk 0:00:57]} 19. Rfd1 {[%clk 0:01:34]}  Qe7 {[%clk 0:00:30]} 20. Qe2 {[%clk 0:01:28]}  Ra7 {[%clk 0:00:20]} 21. Qb5 {[%clk 0:01:27]}  Ra5 {[%clk 0:00:19]} 22. Qd3 {[%clk 0:01:24]}  Ra7 {[%clk 0:00:17]} 23. Bd6 {[%clk 0:01:18]}  Qf6 {[%clk 0:00:06]} 24. Bxc5 {[%clk 0:01:13]}  bxc5 {[%clk 0:00:07]} 25. Rxc5 {[%clk 0:01:10]}  Rd8 {[%clk 0:00:08]} 26. Qf1 {[%clk 0:01:07]}  Rxd1 {[%clk 0:00:06]} 27. Qxd1 {[%clk 0:01:08]}  Ne5 {[%clk 0:00:06]} 28. h3 {[%clk 0:00:56]}  Rd7 {[%clk 0:00:05]} 29. Qe2 {[%clk 0:00:50]}  Kg7 {[%clk 0:00:04]} 30. f4 {[%clk 0:00:49]}  Ng4 {[%clk 0:00:00]} 31. hxg4 {[%clk 0:00:48]} 1-0